Cogmind - Beta 14 @@@ ROGUE MODE // 2025.01.19 @ 19:47:45 Player: Mathewnd Result: Destroyed by as-48812 with Assembled Heavy Rifle Performance ------------- Evolutions (0) 0 Regions Visited (4) 800 Robots Destroyed (18) 90 Value Destroyed (378) 378 Prototype IDs (0) 0 Alien Tech Used (0) 0 Bonus (0) 0 TOTAL SCORE: 1268 Bonus ------- None Cogmind --------- Core Integrity 0/250 Matter 160/300 Energy 98/100 System Corruption 0% Temperature Cool (0) Movement Core (50) Location -9/Mines Parts ------- > --- POWER (1) -------- (None) > --- PROPULSION (2) --- (None) > --- UTILITY (2) ------ (None) > --- WEAPON (2) ------- (None) > --- INVENTORY (5) ---- Light Treads Structural Scanner Tractor Beam Small Laser Assault Rifle Peak State ------------ > --- POWER ------------ Ion Engine > --- PROPULSION ------- Light Treads Wheel > --- UTILITY ---------- Huge Storage Unit > --- WEAPON ----------- Assault Rifle High-powered Shotgun > --- INVENTORY -------- Light Treads Aluminum Leg Aluminum Leg Small Storage Unit Structural Scanner Sensor Array Signal Interpreter Tractor Beam Small Laser Minigun Light Cannon Grenade Launcher [Rating: 9] Favorites ----------- Power Ion Engine Engine Ion Engine Propulsion Light Treads Treads Light Treads Wheel Wheel Utility Huge Storage Unit Device Structural Scanner Storage Huge Storage Unit Weapon Assault Rifle Energy Gun Medium Laser Ballistic Gun Assault Rifle Launcher Grenade Launcher Build | -11 -10 -10 -10 -9 ------- Run | Yrd Mat Min Exi Min Slots Evolved . | . . . . . Power . | . . . . . Propulsion . | . . . . . Utility . | . . . . . Weapon . | . . . . . Parts Attached 20 | 6 10 2 . 2 Power 2 | 1 1 . . . Engine 2 | 1 1 . . . Core . | . . . . . Reactor . | . . . . . Propulsion 7 | 2 3 2 . . Treads 5 | 2 2 1 . . Leg . | . . . . . Wheel 2 | . 1 1 . . Hover . | . . . . . Flight . | . . . . . Utility 3 | 1 2 . . . Device 1 | . 1 . . . Storage 2 | 1 1 . . . Processor . | . . . . . Hackware . | . . . . . Protection . | . . . . . Artifact . | . . . . . Weapon 8 | 2 4 . . 2 Energy Gun 1 | . 1 . . . Energy Cannon . | . . . . . Ballistic Gun 6 | 2 3 . . 1 Ballistic Cannon . | . . . . . Launcher 1 | . . . . 1 Special Weapon . | . . . . . Impact Weapon . | . . . . . Slashing Weapon . | . . . . . Piercing Weapon . | . . . . . Special Melee Weapon . | . . . . . Unidentified Prototypes . | . . . . . Parts Lost 8 | . 4 1 . 3 Power 2 | . 1 . . 1 Propulsion 2 | . 1 1 . . Utility . | . . . . . Weapon 4 | . 2 . . 2 Highest Loss Streak 4 | . 4 1 . 2 To Critical Strikes . | . . . . . Average Slot Usage (%) 83 | . 81 85 85 84 Engine 13 | . 14 14 14 13 Treads 13 | . 13 14 14 14 Wheel 12 | . 11 13 14 14 Storage 15 | . 16 14 14 14 Energy Gun 8 | . 4 14 14 7 Ballistic Gun 17 | . 19 14 14 20 Peak Build Rating 9 | 6 8 7 7 9 Average Rating 6 | 3 6 6 7 7 On Entrance 5 | . 6 7 7 7 Naked Turns 4 | . . . . 4 Heaviest Build 92 | 12 92 89 89 90 Greatest Support 40 | 40 40 10 10 10 Greatest Overweight (x) 8 | . 5 8 8 8 Average Overweight (x) 5 | . 3 8 8 7 Largest Inventory Capacity 25 | 8 25 25 25 25 Average Capacity 22 | 6 21 25 25 24 Most Carried 14 | 6 14 13 13 13 Average Carried 11 | 4 10 11 13 12 Final Capacity 25 | 8 25 25 25 5 Final Carried 13 | 6 12 13 13 5 Class Distribution -------------------- 100% | Mutant Dominant Class ---------------- Mutant | -10/Materials Mutant | -10/Mines Mutant | -10/Exiles Mutant | -9/Mines Resources | -11 -10 -10 -10 -9 ----------- Run | Yrd Mat Min Exi Min Matter Collected 540 | 250 130 102 . 58 Remotely . | . . . . . Salvage Created 509 | . 378 49 . 82 Parts 26 | . 16 5 . 5 Haulers Intercepted 1 | . 1 . . . Recyclers Shooed . | . . . . . Parts Field Recycled . | . . . . . Retrieved Matter . | . . . . . Parts Self-Destructed . | . . . . . Prevented . | . . . . . Kills | -11 -10 -10 -10 -9 ------- Run | Yrd Mat Min Exi Min Combat Hostiles Destroyed 17 | . 7 3 . 7 Guns 15 | . 7 3 . 5 AOE 2 | . . . . 2 Classes Destroyed 5 | . 3 1 . 1 Hauler 1 | . 1 . . . Watcher 2 | . 2 . . . Swarmer 8 | . . 3 . 5 Grunt 7 | . 7 . . . Assembled 2 | . . . . 2 Best Kill Streak 5 | . 5 3 . 3 Combat Bots Only 4 | . 4 3 . 3 Max Kills in Single Turn 2 | . 1 1 . 2 Gunslinging 1 | . . . . 1 Exploded 1 | . . . . 1 Melee . | . . . . . Uniques/NPCs Destroyed . | . . . . . Combat | -11 -10 -10 -10 -9 -------- Run | Yrd Mat Min Exi Min Hostile Shots Fired 123 | . 76 16 . 31 Missed 39 | . 26 5 . 8 Damage Taken 988 | . 623 83 . 282 Core 265 | . 158 16 . 91 Absorbed by Shields . | . . . . . Core Remaining (%) 100 | 100 . . . . Volleys Fired 73 | . 55 6 . 12 Largest 2 | . 2 2 . 2 Hottest 70 | . 50 70 . 70 Shots Fired 127 | . 94 12 . 21 Gun 124 | . 94 12 . 18 Cannon . | . . . . . Launcher 3 | . . . . 3 Special . | . . . . . Kinetic 96 | . 79 6 . 11 Thermal 28 | . 15 6 . 7 Explosive 3 | . . . . 3 Electromagnetic . | . . . . . Robot Hit Streak 17 | . 16 17 . 5 Robot Miss Streak 5 | . 5 2 . 4 Penetration Max . | . . . . . Secondary Targets 6 | . 3 . . 3 Max Gunslinging Chain 1 | . 1 . . 1 Shots Hit Robots 85 | . 65 7 . 13 Core Hits 35 | . 18 3 . 14 Critical Kills . | . . . . . Critical Parts Destroyed 1 | . 1 . . . Critical Strikes 4 | . 3 1 . . Burn 3 | . 2 1 . . Destroy 1 | . 1 . . . Melee Attacks . | . . . . . Impact . | . . . . . Slashing . | . . . . . Piercing . | . . . . . Sneak Attacks . | . . . . . Combat Hostiles . | . . . . . Follow-up Attacks . | . . . . . Damage Inflicted 1281 | . 870 83 . 328 Guns 1108 | . 870 83 . 155 Cannons . | . . . . . Explosions 173 | . . . . 173 Melee . | . . . . . Ramming . | . . . . . Kinetic 797 | . 684 32 . 81 Thermal 311 | . 186 51 . 74 Explosive 173 | . . . . 173 Electromagnetic . | . . . . . Impact . | . . . . . Slashing . | . . . . . Piercing . | . . . . . Highest Corruption . | . . . . . Average Corruption . | . . . . . Corruption Purged . | . . . . . Corruption Blocked . | . . . . . Overload Shots . | . . . . . Overflow Damage 2 | . . . . 2 Projectiles . | . . . . . Explosions 2 | . . . . 2 Melee . | . . . . . Knockbacks . | . . . . . Impact . | . . . . . Kinetic . | . . . . . Secondary . | . . . . . Self-Inflicted Damage 40 | . . . . 40 Shots 1 | . . . . 1 Rammed . | . . . . . Targets Rammed . | . . . . . Kicked . | . . . . . Crushed . | . . . . . Highest Temperature 164 | . 164 27 . 54 Average Temperature 36 | . 48 11 . 25 Received Heat Transfer 345 | . 345 . . . Siege Activations . | . . . . . Robots Corrupted . | . . . . . Combat Hostiles . | . . . . . Parts Fried . | . . . . . Impact Corruptions . | . . . . . Robots Melted 1 | . 1 . . . Combat Hostiles . | . . . . . Parts Melted . | . . . . . Heat Transferred 1147 | . 703 222 . 222 Parts Sabotaged . | . . . . . Parts Stolen . | . . . . . Parts Stripped . | . . . . . Power Chain Reactions . | . . . . . Alert | -11 -10 -10 -10 -9 ------- Run | Yrd Mat Min Exi Min Peak Influence 149 | . 149 97 . 121 Initial 22 | . . 22 . . Average 62 | . 44 95 . 88 Maximum Alert Level . | . . . . . Low Security (%) 100 | 100 100 100 . 100 Level 1 . | . . . . . Level 2 . | . . . . . Level 3 . | . . . . . Level 4 . | . . . . . Level 5 . | . . . . . High Security . | . . . . . Max Security . | . . . . . Squads Dispatched 2 | . 1 1 . . Investigation 1 | . . 1 . . Extermination . | . . . . . Reinforcement 1 | . 1 . . . Assault . | . . . . . Garrison . | . . . . . Intercept . | . . . . . Searches Triggered . | . . . . . Construction Impeded . | . . . . . Haulers Reinforced . | . . . . . Active Scanning Responses . | . . . . . Cargo Convoy Interrupts . | . . . . . Stealth | -11 -10 -10 -10 -9 --------- Run | Yrd Mat Min Exi Min Distress Signals 1 | . 1 . . . Communications Jammed . | . . . . . Distress Signals . | . . . . . Times Spotted 31 | . 11 3 . 17 Peak Tracking Total 11 | . 4 3 . 11 Tactical Retreats . | . . . . . Traps | -11 -10 -10 -10 -9 ------- Run | Yrd Mat Min Exi Min Traps Triggered 2 | . 2 . . . Indirectly . | . . . . . Trap Hack Attempts . | . . . . . Triggered . | . . . . . Disarmed . | . . . . . Reprogrammed . | . . . . . Reused . | . . . . . Traps Extracted . | . . . . . Installed . | . . . . . Triggered . | . . . . . Machines | -11 -10 -10 -10 -9 ---------- Run | Yrd Mat Min Exi Min Machines Disabled . | . . . . . Max in Single Turn . | . . . . . Machines Repaired . | . . . . . Machines Dismantled . | . . . . . Machines Sabotaged . | . . . . . Overloaded Fab Kills . | . . . . . Hacking | -11 -10 -10 -10 -9 --------- Run | Yrd Mat Min Exi Min Machines Accessed 2 | . . 1 1 . Terminals . | . . . . . Fabricators . | . . . . . Repair Stations . | . . . . . Recycling Units . | . . . . . Scanalyzers . | . . . . . Garrison Access . | . . . . . Total Hacks 2 | . . 1 1 . Successful 2 | . . 1 1 . Failed . | . . . . . Catastrophic . | . . . . . Database Lockouts . | . . . . . Manual . | . . . . . Terminals . | . . . . . Fabricators . | . . . . . Repair Stations . | . . . . . Recycling Units . | . . . . . Scanalyzers . | . . . . . Garrison Access . | . . . . . Terminal Hacks 2 | . . 1 1 . Record 1 | . . . 1 . Open Door 1 | . . 1 . . Fabricator Hacks . | . . . . . Repair Station Hacks . | . . . . . Recycling Unit Hacks . | . . . . . Scanalyzer . | . . . . . Garrison Access Hacks . | . . . . . Unauthorized Hacks . | . . . . . Terminals . | . . . . . Fabricators . | . . . . . Repair Stations . | . . . . . Recycling Units . | . . . . . Scanalyzers . | . . . . . Garrison Access . | . . . . . Data Cores Recovered . | . . . . . Used . | . . . . . Hacking Detections . | . . . . . Full Trace Events . | . . . . . Feedback Events . | . . . . . Feedback Blocked . | . . . . . Robot Schematics Acquired . | . . . . . Robots Built . | . . . . . Authchips . | . . . . . Time . | . . . . . Total Robot Build Rating . | . . . . . Part Schematics Acquired . | . . . . . Parts Built . | . . . . . Authchips . | . . . . . Time . | . . . . . Total Part Build Rating . | . . . . . Parts Repaired . | . . . . . Time . | . . . . . Parts Recycled . | . . . . . Recycled Matter . | . . . . . Retrieved Matter . | . . . . . Retrieved Components . | . . . . . Parts Scanalyzed . | . . . . . Part Schematics Acquired . | . . . . . Parts Damaged . | . . . . . Bothacking | -11 -10 -10 -10 -9 ------------ Run | Yrd Mat Min Exi Min Used RIF Installer . | . . . . . Robots Hacked . | . . . . . Non-combat . | . . . . . Combat . | . . . . . Robot Hacks Applied . | . . . . . Relay Couplers Released . | . . . . . Fabnet Peak Effective % . | . . . . . Robots Rewired . | . . . . . Allies Hacked . | . . . . . Hacks Repelled . | . . . . . Allies | -11 -10 -10 -10 -9 -------- Run | Yrd Mat Min Exi Min Total Allies . | . . . . . Largest Group . | . . . . . Highest-Rated Group . | . . . . . Highest-Rated Ally . | . . . . . Total Orders . | . . . . . Ally Attacks . | . . . . . Total Damage . | . . . . . Kills . | . . . . . Allies Corrupted . | . . . . . Allies Melted . | . . . . . Intel | -11 -10 -10 -10 -9 ------- Run | Yrd Mat Min Exi Min Robot Analysis Total . | . . . . . Derelict Logs Recovered 3 | . . 2 . 1 Drone Launches . | . . . . . Drone Recoveries . | . . . . . Exploration | -11 -10 -10 -10 -9 ------------- Run | Yrd Mat Min Exi Min Turns Passed 1573 | 77 660 325 276 235 Spaces Moved 731 | 48 286 152 139 106 Core 24 | 15 . . . 9 Treads 98 | 33 65 . . . Legs . | . . . . . Wheels 609 | . 221 152 139 97 Hover . | . . . . . Flight . | . . . . . Fastest Speed 50 | 50 160 200 200 50 Average Speed 182 | 125 171 200 200 187 Slowest Speed 200 | 160 175 200 200 200 Overloaded Moves . | . . . . . Propulsion Burnouts . | . . . . . Robots Hopped . | . . . . . Cave-ins Triggered . | . . . . . Exploration Rate (%) 36 | 3 65 27 50 35 Regions Visited 4 Branch Regions 3 Pre-discovered Areas 2 | . . 1 1 . Known Exits Taken . | . . . . . Unknown Exits Taken 4 | 1 1 1 1 . Scrap Searched 1 | . . 1 . . Spaces Dug . | . . . . . Terrain Destroyed 17 | . . . . 17 Melee . | . . . . . Projectile . | . . . . . AOE 17 | . . . . 17 Terrain Rammed . | . . . . . Walls Destroyed . | . . . . . Machines Disabled . | . . . . . Actions | -11 -10 -10 -10 -9 --------- Run | Yrd Mat Min Exi Min Total 843 | 63 360 161 138 121 Wait . | . . . . . Move 727 | 47 285 151 138 106 Hop . | . . . . . Pick Up 20 | 9 8 2 . 1 Fast Attach 9 | 4 5 . . . Attach 8 | 2 4 1 . 1 Detach 2 | . 2 . . . Swap 3 | . 1 1 . 1 Drop 1 | 1 . . . . Fire 73 | . 55 6 . 12 Melee . | . . . . . Ram . | . . . . . Kick . | . . . . . Crush . | . . . . . Escape Stasis . | . . . . . Rewire . | . . . . . Trap . | . . . . . Miscellaneous . | . . . . . Route ------- -11/Scrapyard -10/Materials -10/Mines (discovered 2 exits: Mat / *Exi) -10/Exiles -9/Mines History --------- Turn | Location | Event 5 | -11/Scrapyard | Discovered new exit (range 15) 78 | -11/Scrapyard | Entered Materials 309 | -10/Materials | Build established: Mutant 509 | -10/Materials | Core integrity fell below 50% 542 | -10/Materials | Discovered new exit (range 12) 547 | -10/Materials | Lost 4 parts (1p1n2w) 738 | -10/Materials | Entered Mines 937 | -10/Mines | Identified exit to Materials 965 | -10/Mines | Deemed a non-threat by the Exiles lab entrance 967 | -10/Mines | Discovered new exit (range 5) 998 | -10/Mines | Met a Derelict shopkeep closing up shop 1063 | -10/Mines | Entered Exiles 1113 | -10/Exiles | Met 8R-AWN 1145 | -10/Exiles | Met EX-HEX 1221 | -10/Exiles | Met EX-DEC 1259 | -10/Exiles | Learned location of Zion (-7) 1317 | -10/Exiles | Discovered new exit (range 10) 1339 | -10/Exiles | Entered Mines 1423 | -9/Mines | Learned Materials security intel 1547 | -9/Mines | Assembled infested the area 1569 | -9/Mines | Core integrity fell below 20% 1570 | -9/Mines | Released all parts (4) 1574 | -9/Mines | Destroyed by as-48812 with Assembled Heavy Rifle Last Messages --------------- 01454_ S-10 Pest destroyed. 01459_ Acquired 10 matter. 01467_ Acquired Lgt. Assault Rifle. 01468_ Acquired 16 matter. 01472_ K-01 Serf collects debris. 01473_ R-06 Scavenger collects Flight Unit. 01476_ K-01 Serf collects debris. 01547_ ALERT: Infestation in the mines, dispatching Demolisher response squad. 01564_ as-18285 destroyed. 01566_ as-84744 destroyed. 01568_ Ion Engine destroyed. 01568_ Destroyed Ion Engine. 01568_ Knocked back. 01569_ The unstable cave ceiling collapses. 01570_ Grenade Launcher destroyed. 01570_ Released Lgt. Treads. 01570_ Released Huge Storage Unit. 01570_ Released Wheel. 01570_ Released Hpw. Shotgun. Map ----- +----------------------------------------------------+ | #????#### #??# ## #?? | | ????????# #??## #?? | | ????????# #???## #?? | | ????????# #????# ####### #?? | | ????????# #????# #?????## #?? | | ????????# #????# #??????## #?? | | ????????# #????# #???????#### #?? | | ???????## ###### ######?????## #?? | | ???????# #??????# #?? | | ??????# #??????# #?? | | ??????# ########## #??????## #?? | | ??????# ##????????# #????????####?? | | ??????# ##?????????# #?????????????? | | ??????# ?????????### #?????????????? | | ?????# ######### #?????????????? | | ????# =#?????????????? | | ??? [=##????????????? | | ?? ######a!!=#????????????? | | ? ??????## [=]##???????????? | | ? ?????### [!!#???????????? | | ??#### ?????## ##???????????? | | ?????###????## a ####????????? | | ??????????? # aa ##???????? | | ?????????# a*% #???????? | | ?????????# # #???????? | | ?????????# ?####### @ ##???????? | | ??????????????????## ##????????? | | ???????????????????# #?????????? | | ???????????????????# #?????????? | | ?????????????????? #?????????? | | ???????????????? ##?????????? | | ?????????????? #??????????? | | ?????????????# #??????????? | | ?????????????## ## #??????????? | | ??????????????####?## #??????????? | | ????????????????????## #???????????? | | ?????????????????????###????????????? | | ????????????????????????????????????? | | ????????????????????????????????????? | | ????????????????????????????????????? | | ????????????????????????????????????? | | ????????????????????????????????????? | | ????????????????????????????????????? | | ????????????????????????????????????? | | ????????????????????????????????????? | | ????????????????????????????????????? | | ????????????????????????????????????? | | | | | | | +----------------------------------------------------+ Best States ------------- Heat Dissipation 25 Energy Generation 10 Energy Capacity 250 Matter Stores 290 Matter Capacity 300 Sight Range 16 Terrain Scan Density 10 Evasion (%) 50 Recoil Reduction 2 Item Schematics ----------------- None Robot Schematics ------------------ None Fabricated ------------ Nothing Alien Tech Used ----------------- None Achievements -------------- None Challenges ------------ None Game ------ Seed TowerSupersonicAmplifier Manual? 0 Play Time 00:06:38 Cumulative 163.4 hours Start 2025.01.19 @ 19:42:14 End 2025.01.19 @ 19:47:45 Sessions 1 Manual Loads 0 Difficulty Rogue Special Mode None Game No. 134 Rogue 134 Adventurer 0 Explorer 0 Win Type - Total 3 Types 1/0/1/1/0/0/0/0/0 Lore% 69 Gallery% 61 Achievement% 59 Wizard Run 0 Options --------- Layout 1 ASCII 0 Keyboard 1 Movement Arrows Keybinds 0 Fullscreen 2 Font 24/Smallcaps Map View 50x35 Zoom Use 0% Tactical HUD 1 Map Filters NONE Filters NONE Steam 1 RUN: d5fd3ae9-e43f-4fe3-b2a4-d2af054254f7